{"text_format":"1","workbook":"xlsx","n_sheets":4,"sheets":["イ-1","イ-2","イ-3","イ-4"],"not_rendered":{"charts":0,"images":0,"macros":0,"external_links":0,"defined_names":4,"comments":2,"pivot_tables":0},"unopened":[],"bounds":{"document_bytes":16777216,"sheet_cells":100000,"rows_first":2000,"rows_last":500,"rows_between":2000,"halvings":0,"cell_chars":16384,"cell_head_chars":4096},"cells_cut":0,"cells_raw":0,"read":"whole","date_system":"1900"}

{"sheet":"イ-1","index":0,"n_rows":27,"n_cols":49,"rows_kept":27,"cut":false,"hidden":false,"merged":[[19,30,19,32],[20,30,20,32],[21,30,21,32],[22,30,22,32],[22,19,22,29],[19,16,19,18],[20,16,20,18],[21,16,21,18],[22,16,22,18],[19,19,19,29],[20,19,20,29],[21,20,21,29],[12,30,12,32],[12,9,15,15],[12,16,12,18],[13,16,13,18],[14,16,14,18],[15,16,15,18],[14,19,14,29],[15,19,15,29],[15,30,15,32],[14,30,14,32],[13,30,13,32],[1,0,1,49],[6,41,6,49],[4,22,4,40],[4,17,4,20],[5,17,5,20],[6,17,6,20],[2,46,2,47],[19,9,22,15],[26,20,26,23],[2,40,2,41],[2,43,2,44],[5,22,5,40],[6,22,6,40],[7,22,7,40],[7,17,7,20],[17,35,17,36],[10,20,10,21],[10,23,10,24],[10,27,10,28],[17,28,17,29],[17,31,17,32],[12,19,12,29],[13,19,13,29]]}
[]
["中小企業信用保険法第2条第5項第5号認定申請書添付資料(イ-１)"]
[null,null,null,null,null,null,null,null,null,null,null,null,null,null,null,null,null,null,null,null,null,null,null,null,null,null,null,null,null,null,null,null,null,null,null,null,null,null,"令和",null,null,null,"年",null,null,"月",null,null,"日"]
[]
[null,null,null,null,null,null,null,null,null,null,null,null,null,null,null,null,null,"所在地"]
[null,null,null,null,null,null,null,null,null,null,null,null,null,null,null,null,null,"企業名"]
[null,null,null,null,null,null,null,null,null,null,null,null,null,null,null,null,null,"代表者名",null,null,null,null,null,null,null,null,null,null,null,null,null,null,null,null,null,null,null,null,null,null,null,"個人事業主の場合\n代表者名は自署"]
[null,null,null,null,null,null,null,null,null,null,null,null,null,null,null,null,null,"電話番号",null,null,null,null,"(　　　　　　　　)"]
[null,null,null,null,null,null,null,null,"１　申込時点における最近３か月間の売上高等"]
[]
[null,null,null,null,null,null,null,null,"　(1)　最近３か月間の売上高等",null,null,null,null,null,null,null,null,null,null,"（",null,null,"年",null,null,"月","～",null,null,"月","）"]
[]
[null,null,null,null,null,null,null,null,null,"最近の売上高等\n(実績)",null,null,null,null,null,null,"月",null,null,null,null,null,null,null,null,null,null,null,null,null,"円"]
[null,null,null,null,null,null,null,null,null,null,null,null,null,null,null,null,"月",null,null,null,null,null,null,null,null,null,null,null,null,null,"円"]
[null,null,null,null,null,null,null,null,null,null,null,null,null,null,null,null,"月",null,null,null,null,null,null,null,null,null,null,null,null,null,"円"]
[null,null,null,null,null,null,null,null,null,null,null,null,null,null,null,null,"合計",null,null,{"$f":"SUM(T13:AD15)","v":0},null,null,null,null,null,null,null,null,null,null,"円【A】"]
[]
[null,null,null,null,null,null,null,null,"　(２)　上記の期間に対応する前年の３か月間の売上高等",null,null,null,null,null,null,null,null,null,null,null,null,null,null,null,null,null,null,"（",{"$f":"IF(U11=0,\" \",U11)","v":" "},{"$f":"IF(#REF!=0,\" \",#REF!)","v":{"$error":"#REF!"}},"年",{"$f":"IF(X11=0,\" \",X11)","v":" "},{"$f":"IF(#REF!=0,\" \",#REF!)","v":{"$error":"#REF!"}},"月","～",{"$f":"IF(AB11=0,\" \",AB11)","v":" "},{"$f":"IF(#REF!=0,\" \",#REF!)","v":{"$error":"#REF!"}},"月","）"]
[]
[null,null,null,null,null,null,null,null,null,"前年の３か月間の\n売上高等(実績)",null,null,null,null,null,null,"月",null,null,null,null,null,null,null,null,null,null,null,null,null,"円"]
[null,null,null,null,null,null,null,null,null,null,null,null,null,null,null,null,"月",null,null,null,null,null,null,null,null,null,null,null,null,null,"円"]
[null,null,null,null,null,null,null,null,null,null,null,null,null,null,null,null,"月",null,null,null,null,null,null,null,null,null,null,null,null,null,"円"]
[null,null,null,null,null,null,null,null,null,null,null,null,null,null,null,null,"合計",null,null,{"$f":"SUM(T20:AD22)","v":0},null,null,null,null,null,null,null,null,null,null,"円【B】"]
[]
[null,null,null,null,null,null,null,null,"　(３)　減少率"]
[]
[null,null,null,null,null,null,null,null,null,"　(　B - A　)　÷　B　×　１００ ＝　",null,null,null,null,null,null,null,null,null,null,{"$f":"IF(T23-T16=0,\" \",ROUNDDOWN(((T23-T16)/T23*100),1))","v":" "},null,null,null,"％","　","≧","　５％　(実績)"]

{"sheet":"イ-2","index":1,"n_rows":38,"n_cols":49,"rows_kept":38,"cut":false,"hidden":false,"merged":[[37,20,37,23],[28,30,28,32],[29,16,29,18],[29,20,29,29],[29,30,29,32],[30,16,30,18],[30,19,30,29],[30,30,30,32],[34,20,34,23],[16,9,19,15],[16,16,16,18],[16,19,16,29],[16,30,16,32],[17,16,17,18],[17,19,17,29],[27,9,30,15],[27,16,27,18],[27,19,27,29],[27,30,27,32],[28,16,28,18],[28,19,28,29],[15,30,15,32],[21,28,21,29],[21,31,21,32],[17,30,17,32],[18,16,18,18],[18,19,18,29],[18,30,18,32],[19,16,19,18],[19,19,19,29],[19,30,19,32],[21,35,21,36],[23,9,26,15],[23,16,23,18],[23,19,23,29],[23,30,23,32],[24,16,24,18],[24,19,24,29],[26,16,26,18],[26,19,26,29],[26,30,26,32],[24,30,24,32],[25,16,25,18],[25,20,25,29],[25,30,25,32],[12,30,12,32],[13,16,13,18],[13,19,13,29],[13,30,13,32],[14,16,14,18],[14,19,14,29],[14,30,14,32],[10,20,10,21],[10,23,10,24],[10,27,10,28],[12,9,15,15],[12,16,12,18],[12,19,12,29],[15,16,15,18],[15,19,15,29],[7,17,7,20],[7,22,7,40],[1,0,1,49],[2,40,2,41],[2,43,2,44],[2,46,2,47],[4,17,4,20],[4,22,4,40],[5,17,5,20],[5,22,5,40],[6,17,6,20],[6,22,6,40],[6,41,6,49]]}
[]
["中小企業信用保険法第2条第5項第5号認定申請書添付資料(イ-２)"]
[null,null,null,null,null,null,null,null,null,null,null,null,null,null,null,null,null,null,null,null,null,null,null,null,null,null,null,null,null,null,null,null,null,null,null,null,null,null,"令和",null,null,null,"年",null,null,"月",null,null,"日"]
[]
[null,null,null,null,null,null,null,null,null,null,null,null,null,null,null,null,null,"所在地"]
[null,null,null,null,null,null,null,null,null,null,null,null,null,null,null,null,null,"企業名"]
[null,null,null,null,null,null,null,null,null,null,null,null,null,null,null,null,null,"代表者名",null,null,null,null,null,null,null,null,null,null,null,null,null,null,null,null,null,null,null,null,null,null,null,"個人事業主の場合\n代表者名は自署"]
[null,null,null,null,null,null,null,null,null,null,null,null,null,null,null,null,null,"電話番号",null,null,null,null,"(　　　　　　　　)"]
[null,null,null,null,null,null,null,null,"１　申込時点における最近３か月間の売上高等"]
[]
[null,null,null,null,null,null,null,null,"　(1)　最近３か月間の売上高等",null,null,null,null,null,null,null,null,null,null,"（",null,null,"年",null,null,"月","～",null,null,"月","）"]
[]
[null,null,null,null,null,null,null,null,null,"指定業種",null,null,null,null,null,null,"月",null,null,null,null,null,null,null,null,null,null,null,null,null,"円"]
[null,null,null,null,null,null,null,null,null,null,null,null,null,null,null,null,"月",null,null,null,null,null,null,null,null,null,null,null,null,null,"円"]
[null,null,null,null,null,null,null,null,null,null,null,null,null,null,null,null,"月",null,null,null,null,null,null,null,null,null,null,null,null,null,"円"]
[null,null,null,null,null,null,null,null,null,null,null,null,null,null,null,null,"合計",null,null,{"$f":"SUM(T13:AD15)","v":0},null,null,null,null,null,null,null,null,null,null,"円【A】"]
[null,null,null,null,null,null,null,null,null,"全体",null,null,null,null,null,null,"月",null,null,null,null,null,null,null,null,null,null,null,null,null,"円"]
[null,null,null,null,null,null,null,null,null,null,null,null,null,null,null,null,"月",null,null,null,null,null,null,null,null,null,null,null,null,null,"円"]
[null,null,null,null,null,null,null,null,null,null,null,null,null,null,null,null,"月",null,null,null,null,null,null,null,null,null,null,null,null,null,"円"]
[null,null,null,null,null,null,null,null,null,null,null,null,null,null,null,null,"合計",null,null,{"$f":"SUM(T17:AD19)","v":0},null,null,null,null,null,null,null,null,null,null,"円【A´】"]
[]
[null,null,null,null,null,null,null,null,"　(２)　上記の期間に対応する前年の３か月間の売上高等",null,null,null,null,null,null,null,null,null,null,null,null,null,null,null,null,null,null,"（",{"$f":"IF(U11=0,\" \",U11)","v":" "},{"$f":"IF(#REF!=0,\" \",#REF!)","v":{"$error":"#REF!"}},"年",{"$f":"IF(X11=0,\" \",X11)","v":" "},{"$f":"IF(#REF!=0,\" \",#REF!)","v":{"$error":"#REF!"}},"月","～",{"$f":"IF(AB11=0,\" \",AB11)","v":" "},{"$f":"IF(#REF!=0,\" \",#REF!)","v":{"$error":"#REF!"}},"月","）"]
[]
[null,null,null,null,null,null,null,null,null,"指定業種",null,null,null,null,null,null,"月",null,null,null,null,null,null,null,null,null,null,null,null,null,"円"]
[null,null,null,null,null,null,null,null,null,null,null,null,null,null,null,null,"月",null,null,null,null,null,null,null,null,null,null,null,null,null,"円"]
[null,null,null,null,null,null,null,null,null,null,null,null,null,null,null,null,"月",null,null,null,null,null,null,null,null,null,null,null,null,null,"円"]
[null,null,null,null,null,null,null,null,null,null,null,null,null,null,null,null,"合計",null,null,{"$f":"SUM(T24:AD26)","v":0},null,null,null,null,null,null,null,null,null,null,"円【B】"]
[null,null,null,null,null,null,null,null,null,"全体",null,null,null,null,null,null,"月",null,null,null,null,null,null,null,null,null,null,null,null,null,"円"]
[null,null,null,null,null,null,null,null,null,null,null,null,null,null,null,null,"月",null,null,null,null,null,null,null,null,null,null,null,null,null,"円"]
[null,null,null,null,null,null,null,null,null,null,null,null,null,null,null,null,"月",null,null,null,null,null,null,null,null,null,null,null,null,null,"円"]
[null,null,null,null,null,null,null,null,null,null,null,null,null,null,null,null,"合計",null,null,{"$f":"SUM(T28:AD30)","v":0},null,null,null,null,null,null,null,null,null,null,"円【B´】"]
[]
[null,null,null,null,null,null,null,null,"　(３)　指定業種の減少率"]
[]
[null,null,null,null,null,null,null,null,null,"　(　B - A　)　÷　B　×　１００ ＝　",null,null,null,null,null,null,null,null,null,null,{"$f":"IF(T27-T16=0,\" \",ROUNDDOWN(((T27-T16)/T27*100),1))","v":" "},null,null,null,"％","　","≧","　５％　(実績)"]
[]
[null,null,null,null,null,null,null,null,"　　　　全体の減少率"]
[null,null,null,null,null,null,null,null,null,"　(　B´ - A´　)　÷　B´　×　１００ ＝　",null,null,null,null,null,null,null,null,null,null,{"$f":"IF(T31-T20=0,\" \",ROUNDDOWN(((T31-T20)/T31*100),1))","v":" "},null,null,null,"％","　","≧","　５％　(実績)"]

{"sheet":"イ-3","index":2,"n_rows":27,"n_cols":49,"rows_kept":27,"cut":false,"hidden":false,"merged":[[26,20,26,23],[18,16,18,18],[18,19,18,29],[18,30,18,32],[22,9,22,18],[22,19,22,29],[22,30,22,32],[19,19,19,29],[19,30,19,32],[19,16,19,18],[16,9,19,15],[17,16,17,18],[17,19,17,29],[17,30,17,32],[12,9,12,18],[12,19,12,29],[12,30,12,32],[16,16,16,18],[16,19,16,29],[16,30,16,32],[7,17,7,20],[7,22,7,40],[1,0,1,49],[2,40,2,41],[2,43,2,44],[2,46,2,47],[4,17,4,20],[4,22,4,40],[5,17,5,20],[5,22,5,40],[6,17,6,20],[6,22,6,40],[6,41,6,49]]}
[]
["中小企業信用保険法第2条第5項第5号認定申請書添付資料(イ-3)"]
[null,null,null,null,null,null,null,null,null,null,null,null,null,null,null,null,null,null,null,null,null,null,null,null,null,null,null,null,null,null,null,null,null,null,null,null,null,null,"令和",null,null,null,"年",null,null,"月",null,null,"日"]
[]
[null,null,null,null,null,null,null,null,null,null,null,null,null,null,null,null,null,"所在地"]
[null,null,null,null,null,null,null,null,null,null,null,null,null,null,null,null,null,"企業名"]
[null,null,null,null,null,null,null,null,null,null,null,null,null,null,null,null,null,"代表者名",null,null,null,null,null,null,null,null,null,null,null,null,null,null,null,null,null,null,null,null,null,null,null,"個人事業主の場合\n代表者名は自署"]
[null,null,null,null,null,null,null,null,null,null,null,null,null,null,null,null,null,"電話番号",null,null,null,null,"(　　　　　　　　)"]
[null,null,null,null,null,null,null,null,"（イ）　最近１か月間の売上高等"]
[]
[null,null,null,null,null,null,null,null,"　A：申込時点における最近１か月間の売上高等（　　　　　　　　年　　　　　月）"]
[]
[null,null,null,null,null,null,null,null,null,"売上高等(実績)",null,null,null,null,null,null,null,null,null,null,null,null,null,null,null,null,null,null,null,null,"円【A】"]
[]
[null,null,null,null,null,null,null,null,"　B：Aの直前3か月間の月平均売上高等（　　　　　　　　年　　　　　月 ～　　　　　月）"]
[]
[null,null,null,null,null,null,null,null,null,"売上高等(実績)",null,null,null,null,null,null,"月",null,null,null,null,null,null,null,null,null,null,null,null,null,"円"]
[null,null,null,null,null,null,null,null,null,null,null,null,null,null,null,null,"月",null,null,null,null,null,null,null,null,null,null,null,null,null,"円"]
[null,null,null,null,null,null,null,null,null,null,null,null,null,null,null,null,"月",null,null,null,null,null,null,null,null,null,null,null,null,null,"円"]
[null,null,null,null,null,null,null,null,null,null,null,null,null,null,null,null,"合計",null,null,{"$f":"SUM(T18:AD19)","v":0},null,null,null,null,null,null,null,null,null,null,"円【B】"]
[null,null,null,null,null,null,null,null,"　C：Aの直前３か月間の売上高等の平均（　　　　　　　　年　　　　　月 ～　　　　　月）"]
[]
[null,null,null,null,null,null,null,null,null,"平均売上高等　B÷３",null,null,null,null,null,null,null,null,null,{"$f":"(T13+T19)/3","v":0},null,null,null,null,null,null,null,null,null,null,"円【C】"]
[]
[null,null,null,null,null,null,null,null,"　減少率"]
[]
[null,null,null,null,null,null,null,null,null,"　( C - A ) ÷ C × １００ ＝　",null,null,null,null,null,null,null,null,null,null,{"$f":"IFERROR(ROUNDDOWN(((T23-T13)/T23)*100,1),\"\")","v":""},null,null,null,"％","　","≧","　５％　(実績)"]

{"sheet":"イ-4","index":3,"n_rows":26,"n_cols":49,"rows_kept":26,"cut":false,"hidden":false,"merged":[[23,20,23,23],[25,20,25,23],[17,9,17,18],[17,19,17,29],[17,30,17,32],[18,9,18,18],[18,19,18,29],[18,30,18,32],[12,9,12,18],[12,19,12,29],[12,30,12,32],[13,9,13,18],[13,19,13,29],[13,30,13,32],[7,17,7,20],[7,22,7,40],[1,0,1,49],[2,40,2,41],[2,43,2,44],[2,46,2,47],[4,17,4,20],[4,22,4,40],[5,17,5,20],[5,22,5,40],[6,17,6,20],[6,22,6,40],[6,41,6,49]]}
[]
["中小企業信用保険法第2条第5項第5号認定申請書添付資料(イ-4)"]
[null,null,null,null,null,null,null,null,null,null,null,null,null,null,null,null,null,null,null,null,null,null,null,null,null,null,null,null,null,null,null,null,null,null,null,null,null,null,"令和",null,null,null,"年",null,null,"月",null,null,"日"]
[]
[null,null,null,null,null,null,null,null,null,null,null,null,null,null,null,null,null,"所在地"]
[null,null,null,null,null,null,null,null,null,null,null,null,null,null,null,null,null,"企業名"]
[null,null,null,null,null,null,null,null,null,null,null,null,null,null,null,null,null,"代表者名",null,null,null,null,null,null,null,null,null,null,null,null,null,null,null,null,null,null,null,null,null,null,null,"個人事業主の場合\n代表者名は自署"]
[null,null,null,null,null,null,null,null,null,null,null,null,null,null,null,null,null,"電話番号",null,null,null,null,"(　　　　　　　　)"]
[null,null,null,null,null,null,null,null,"（イ）　最近１か月間の売上高等"]
[]
[null,null,null,null,null,null,null,null,"　A：申込時点における最近１か月間の売上高等（　　　　　　　　年　　　　　月）"]
[]
[null,null,null,null,null,null,null,null,null,"指定業種の\n売上高等(実績)",null,null,null,null,null,null,null,null,null,null,null,null,null,null,null,null,null,null,null,null,"円【A】"]
[null,null,null,null,null,null,null,null,null,"全体の\n売上高等(実績)",null,null,null,null,null,null,null,null,null,null,null,null,null,null,null,null,null,null,null,null,"円【A´】"]
[]
[null,null,null,null,null,null,null,null,"　B：Aの直前３か月間の売上高等の平均（　　　　　　　　年　　　　　月 ～　　　　　月）"]
[]
[null,null,null,null,null,null,null,null,null,"指定業種の\n平均売上高等　B÷３",null,null,null,null,null,null,null,null,null,null,null,null,null,null,null,null,null,null,null,null,"円【B】"]
[null,null,null,null,null,null,null,null,null,"全体の\n平均売上高等　B´÷３",null,null,null,null,null,null,null,null,null,null,null,null,null,null,null,null,null,null,null,null,"円【B´】"]
[]
[null,null,null,null,null,null,null,null,"　減少率"]
[]
[null,null,null,null,null,null,null,null,null,"指定業種"]
[null,null,null,null,null,null,null,null,null,"　( B - A ) ÷ B × １００ ＝　",null,null,null,null,null,null,null,null,null,null,{"$f":"IFERROR(ROUNDDOWN(((T18-T13)/T18)*100,1),\"\")","v":""},null,null,null,"％","　","≧","　５％　(実績)"]
[null,null,null,null,null,null,null,null,null,"全体"]
[null,null,null,null,null,null,null,null,null,"　( B´ - A´ ) ÷ B´ × １００ ＝　",null,null,null,null,null,null,null,null,null,null,{"$f":"IFERROR(ROUNDDOWN(((T19-T14)/T19)*100,1),\"\")","v":""},null,null,null,"％",null,"≧","　５％　(実績)"]